[Event "Titled Tuesday Blitz January 10 Late 2023"]
[White "Tari, Aryan"]
[Black "Averjanov, Alexey"]
[WhiteFideId "1510045"]
[BlackFideId "14109867"]
[WhiteElo "2642"]
[BlackElo "2399"]
[Result "1-0"]
[Round "02"]
[TimeControl "180+2"]
[Date "2023.01.10"]
[WhiteClock "0:01:20"]
[BlackClock "0:01:07"]

1. d4 {[%clk 0:00:00]}  d5 {[%clk 0:00:00]} 2. Nf3 {[%clk 0:02:55]}  Nf6 {[%clk 0:02:59]} 3. Bf4 {[%clk 0:02:55]}  e6 {[%clk 0:02:59]} 4. e3 {[%clk 0:02:56]}  c5 {[%clk 0:02:59]} 5. c3 {[%clk 0:02:56]}  Bd6 {[%clk 0:02:59]} 6. Bg3 {[%clk 0:02:55]}  Qc7 {[%clk 0:02:59]} 7. dxc5 {[%clk 0:02:54]}  Qxc5 {[%clk 0:02:59]} 8. Nbd2 {[%clk 0:02:17]}  O-O {[%clk 0:02:59]} 9. Bd3 {[%clk 0:02:17]}  Nbd7 {[%clk 0:02:57]} 10. Qe2 {[%clk 0:02:09]}  Bxg3 {[%clk 0:02:49]} 11. hxg3 {[%clk 0:02:00]}  h6 {[%clk 0:02:44]} 12. e4 {[%clk 0:02:00]}  dxe4 {[%clk 0:02:44]} 13. Nxe4 {[%clk 0:02:00]}  Nxe4 {[%clk 0:02:44]} 14. Qxe4 {[%clk 0:02:00]}  Nf6 {[%clk 0:02:44]} 15. Qe5 {[%clk 0:01:56]}  Qxe5+ {[%clk 0:02:44]} 16. Nxe5 {[%clk 0:01:51]}  b6 {[%clk 0:02:40]} 17. O-O-O {[%clk 0:01:52]}  Bb7 {[%clk 0:02:41]} 18. f3 {[%clk 0:01:46]}  Rfd8 {[%clk 0:02:41]} 19. g4 {[%clk 0:01:46]}  Kf8 {[%clk 0:02:41]} 20. Bb5 {[%clk 0:01:43]}  Ke7 {[%clk 0:02:41]} 21. Bc6 {[%clk 0:01:39]}  Rdb8 {[%clk 0:02:40]} 22. Bxb7 {[%clk 0:01:39]}  Rxb7 {[%clk 0:02:25]} 23. Nc6+ {[%clk 0:01:39]}  Ke8 {[%clk 0:02:25]} 24. g5 {[%clk 0:01:40]}  Ng8 {[%clk 0:02:24]} 25. gxh6 {[%clk 0:01:41]}  Nxh6 {[%clk 0:02:20]} 26. g4 {[%clk 0:01:41]}  Rc7 {[%clk 0:02:20]} 27. Nd4 {[%clk 0:01:40]}  Rd8 {[%clk 0:02:15]} 28. g5 {[%clk 0:01:40]}  Ng8 {[%clk 0:02:04]} 29. Rh8 {[%clk 0:01:38]}  Ke7 {[%clk 0:02:04]} 30. Nf5+ {[%clk 0:01:36]}  exf5 {[%clk 0:02:03]} 31. Rxd8 {[%clk 0:01:27]}  Kxd8 {[%clk 0:02:02]} 32. Rxg8+ {[%clk 0:01:28]}  Ke7 {[%clk 0:02:02]} 33. Rxg7 {[%clk 0:01:29]}  Kf8 {[%clk 0:02:00]} 34. Rh7 {[%clk 0:01:29]}  Rc4 {[%clk 0:01:37]} 35. Kd2 {[%clk 0:01:29]}  Kg8 {[%clk 0:01:27]} 36. Rh6 {[%clk 0:01:29]}  Kg7 {[%clk 0:01:24]} 37. Rf6 {[%clk 0:01:28]}  f4 {[%clk 0:01:11]} 38. Kd3 {[%clk 0:01:22]}  Rc5 {[%clk 0:01:12]} 39. Rxf4 {[%clk 0:01:21]}  Rxg5 {[%clk 0:01:07]} 40. Rg4 {[%clk 0:01:21]}  Kf6 {[%clk 0:01:07]} 41. Rxg5 {[%clk 0:01:21]}  Kxg5 {[%clk 0:01:07]} 42. Ke4 {[%clk 0:01:20]} 1-0


[Site "https://www.chess.com"]

[Event "Titled Tuesday Blitz January 10 Late 2023"]
[White "Melkumyan, Hrant"]
[Black "Leiva, Gianmarco"]
[WhiteFideId "13302485"]
[BlackFideId "3804399"]
[WhiteElo "2645"]
[BlackElo "2392"]
[Result "0-1"]
[Round "02"]
[TimeControl "180+2"]
[Date "2023.01.10"]
[WhiteClock "0:00:17"]
[BlackClock "0:00:06"]

1. d4 {[%clk 0:00:00]}  Nf6 {[%clk 0:00:00]} 2. c4 {[%clk 0:02:58]}  e6 {[%clk 0:02:59]} 3. Bf4 {[%clk 0:02:56]}  d5 {[%clk 0:03:00]} 4. e3 {[%clk 0:02:53]}  Bd6 {[%clk 0:02:59]} 5. Ne2 {[%clk 0:02:48]}  Bxf4 {[%clk 0:02:59]} 6. Nxf4 {[%clk 0:02:41]}  O-O {[%clk 0:02:57]} 7. Nc3 {[%clk 0:02:41]}  c6 {[%clk 0:02:57]} 8. Rc1 {[%clk 0:02:42]}  Nbd7 {[%clk 0:02:48]} 9. Be2 {[%clk 0:02:41]}  dxc4 {[%clk 0:02:47]} 10. Bxc4 {[%clk 0:02:34]}  e5 {[%clk 0:02:47]} 11. Nfe2 {[%clk 0:02:16]}  Qe7 {[%clk 0:02:48]} 12. O-O {[%clk 0:02:05]}  Nb6 {[%clk 0:02:38]} 13. Bb3 {[%clk 0:02:05]}  Bg4 {[%clk 0:02:37]} 14. Qc2 {[%clk 0:02:03]}  Rad8 {[%clk 0:02:32]} 15. h3 {[%clk 0:01:59]}  Bc8 {[%clk 0:01:56]} 16. Rfd1 {[%clk 0:01:59]}  g6 {[%clk 0:01:56]} 17. Ne4 {[%clk 0:01:54]}  exd4 {[%clk 0:01:55]} 18. Nxf6+ {[%clk 0:01:36]}  Qxf6 {[%clk 0:01:20]} 19. Nxd4 {[%clk 0:01:29]}  Kg7 {[%clk 0:01:20]} 20. a4 {[%clk 0:01:30]}  a5 {[%clk 0:01:16]} 21. Qc5 {[%clk 0:01:28]}  Nd5 {[%clk 0:01:15]} 22. Qxa5 {[%clk 0:01:28]}  Rfe8 {[%clk 0:01:09]} 23. Bxd5 {[%clk 0:01:26]}  Rxd5 {[%clk 0:00:57]} 24. Qe1 {[%clk 0:01:11]}  Re4 {[%clk 0:00:56]} 25. b4 {[%clk 0:01:11]}  Qe7 {[%clk 0:00:49]} 26. Qc3 {[%clk 0:01:08]}  Kg8 {[%clk 0:00:41]} 27. Nb3 {[%clk 0:01:04]}  Rg5 {[%clk 0:00:40]} 28. Kh2 {[%clk 0:01:00]}  Rxb4 {[%clk 0:00:37]} 29. Nc5 {[%clk 0:00:44]}  Rh4 {[%clk 0:00:09]} 30. f4 {[%clk 0:00:44]}  Rgh5 {[%clk 0:00:09]} 31. Qd4 {[%clk 0:00:45]}  Bxh3 {[%clk 0:00:07]} 32. Qd8+ {[%clk 0:00:34]}  Qxd8 {[%clk 0:00:06]} 33. Rxd8+ {[%clk 0:00:34]}  Kg7 {[%clk 0:00:06]} 34. gxh3 {[%clk 0:00:35]}  Rxh3+ {[%clk 0:00:07]} 35. Kg2 {[%clk 0:00:36]}  Rxe3 {[%clk 0:00:07]} 36. Rc2 {[%clk 0:00:37]}  Reh3 {[%clk 0:00:07]} 37. Rc4 {[%clk 0:00:32]}  Rh2+ {[%clk 0:00:06]} 38. Kf3 {[%clk 0:00:27]}  R5h3+ {[%clk 0:00:06]} 39. Ke4 {[%clk 0:00:27]}  Re2+ {[%clk 0:00:06]} 40. Kd4 {[%clk 0:00:24]}  Rd2+ {[%clk 0:00:07]} 41. Ke4 {[%clk 0:00:20]}  Rxd8 {[%clk 0:00:06]} 42. Nxb7 {[%clk 0:00:16]}  f5+ {[%clk 0:00:05]} 43. Ke5 {[%clk 0:00:17]}  Re3+ {[%clk 0:00:05]} 44. Re4 {[%clk 0:00:17]}  Rxe4# {[%clk 0:00:06]} 0-1


[Site "https://www.chess.com"]

[Event "Titled Tuesday Blitz January 10 Late 2023"]
[White "Chor, Kevin"]
[Black "Galperin, Platon"]
[WhiteFideId "2090740"]
[BlackFideId "14165414"]
[WhiteElo "1944"]
[BlackElo "2528"]
[Result "1-0"]
[Round "02"]
[TimeControl "180+2"]
[Date "2023.01.10"]
[WhiteClock "0:00:11"]
[BlackClock "0:00:40"]

1. e4 {[%clk 0:00:00]}  c5 {[%clk 0:00:00]} 2. Nf3 {[%clk 0:03:00]}  d6 {[%clk 0:02:57]} 3. d4 {[%clk 0:02:49]}  Nf6 {[%clk 0:02:57]} 4. Nc3 {[%clk 0:02:49]}  cxd4 {[%clk 0:02:58]} 5. Nxd4 {[%clk 0:02:49]}  g6 {[%clk 0:02:59]} 6. Be3 {[%clk 0:02:50]}  Nc6 {[%clk 0:02:59]} 7. f3 {[%clk 0:02:44]}  h5 {[%clk 0:02:59]} 8. Qd2 {[%clk 0:02:42]}  Nxd4 {[%clk 0:03:00]} 9. Bxd4 {[%clk 0:02:39]}  Bh6 {[%clk 0:02:59]} 10. Be3 {[%clk 0:02:34]}  Bxe3 {[%clk 0:02:59]} 11. Qxe3 {[%clk 0:02:32]}  Qa5 {[%clk 0:02:59]} 12. O-O-O {[%clk 0:02:33]}  Be6 {[%clk 0:02:59]} 13. Kb1 {[%clk 0:02:29]}  O-O {[%clk 0:02:59]} 14. Be2 {[%clk 0:02:27]}  Rfc8 {[%clk 0:02:54]} 15. a3 {[%clk 0:02:04]}  b5 {[%clk 0:02:54]} 16. Nd5 {[%clk 0:02:03]}  Bxd5 {[%clk 0:02:44]} 17. exd5 {[%clk 0:01:52]}  b4 {[%clk 0:02:39]} 18. Qxe7 {[%clk 0:01:52]}  Kg7 {[%clk 0:02:39]} 19. Qxd6 {[%clk 0:01:21]}  Rab8 {[%clk 0:02:16]} 20. Bd3 {[%clk 0:01:18]}  bxa3 {[%clk 0:02:17]} 21. b3 {[%clk 0:01:00]}  Nxd5 {[%clk 0:02:11]} 22. Qe5+ {[%clk 0:01:01]}  Kg8 {[%clk 0:02:06]} 23. Ka1 {[%clk 0:00:50]}  Re8 {[%clk 0:02:03]} 24. Qd4 {[%clk 0:00:46]}  Rb4 {[%clk 0:01:58]} 25. Bc4 {[%clk 0:00:43]}  Nb6 {[%clk 0:01:58]} 26. Rhe1 {[%clk 0:00:42]}  Rf8 {[%clk 0:01:52]} 27. Re5 {[%clk 0:00:36]}  Rxc4 {[%clk 0:01:38]} 28. Rxa5 {[%clk 0:00:32]}  Rxd4 {[%clk 0:01:15]} 29. Rxd4 {[%clk 0:00:31]}  Re8 {[%clk 0:01:15]} 30. Re4 {[%clk 0:00:32]}  Rd8 {[%clk 0:01:14]} 31. Rxa7 {[%clk 0:00:24]}  Rd2 {[%clk 0:01:13]} 32. Rxa3 {[%clk 0:00:19]}  Rxc2 {[%clk 0:01:13]} 33. Ra2 {[%clk 0:00:16]}  Rc5 {[%clk 0:01:11]} 34. Kb2 {[%clk 0:00:17]}  Rg5 {[%clk 0:01:01]} 35. g3 {[%clk 0:00:17]}  h4 {[%clk 0:01:02]} 36. Rxh4 {[%clk 0:00:17]}  Nd5 {[%clk 0:01:01]} 37. Rd4 {[%clk 0:00:16]}  Ne3 {[%clk 0:01:02]} 38. Re4 {[%clk 0:00:17]}  Nf1 {[%clk 0:01:02]} 39. Kc3 {[%clk 0:00:16]}  Rc5+ {[%clk 0:01:01]} 40. Kb4 {[%clk 0:00:16]}  Rd5 {[%clk 0:01:01]} 41. Rf2 {[%clk 0:00:17]}  Nd2 {[%clk 0:01:01]} 42. Ree2 {[%clk 0:00:16]}  Nb1 {[%clk 0:00:58]} 43. Kc4 {[%clk 0:00:17]}  Rd8 {[%clk 0:00:58]} 44. Rb2 {[%clk 0:00:16]}  Rc8+ {[%clk 0:00:57]} 45. Kb4 {[%clk 0:00:15]}  Nc3 {[%clk 0:00:55]} 46. Rbc2 {[%clk 0:00:14]}  Nd5+ {[%clk 0:00:56]} 47. Ka3 {[%clk 0:00:14]}  Ra8+ {[%clk 0:00:56]} 48. Kb2 {[%clk 0:00:14]}  Nb4 {[%clk 0:00:57]} 49. Rcd2 {[%clk 0:00:14]}  Kg7 {[%clk 0:00:57]} 50. Rfe2 {[%clk 0:00:14]}  Rb8 {[%clk 0:00:54]} 51. Re4 {[%clk 0:00:13]}  Nc6 {[%clk 0:00:51]} 52. Rc2 {[%clk 0:00:13]}  Na5 {[%clk 0:00:51]} 53. Rc3 {[%clk 0:00:12]}  Rb6 {[%clk 0:00:51]} 54. b4 {[%clk 0:00:11]}  f5 {[%clk 0:00:50]} 55. Re7+ {[%clk 0:00:12]}  Kf6 {[%clk 0:00:50]} 56. Ra7 {[%clk 0:00:11]}  Rxb4+ {[%clk 0:00:50]} 57. Ka3 {[%clk 0:00:11]}  Rb5 {[%clk 0:00:50]} 58. Ka4 {[%clk 0:00:11]}  Rc5 {[%clk 0:00:49]} 59. Ra6+ {[%clk 0:00:11]}  Rc6 {[%clk 0:00:44]} 60. Kxa5 {[%clk 0:00:11]}  Rxa6+ {[%clk 0:00:40]} 61. Kxa6 {[%clk 0:00:11]} 1-0


[Site "https://www.chess.com"]

[Event "Titled Tuesday Blitz January 10 Late 2023"]
[White "Hamitevici, Vladimir"]
[Black "Hansen, Eric"]
[WhiteFideId "13902393"]
[BlackFideId "2606771"]
[WhiteElo "2496"]
[BlackElo "2609"]
[Result "0-1"]
[Round "02"]
[TimeControl "180+2"]
[Date "2023.01.10"]
[WhiteClock "0:00:04"]
[BlackClock "0:00:03"]

1. d4 {[%clk 0:00:00]}  Nf6 {[%clk 0:00:00]} 2. c4 {[%clk 0:02:59]}  e6 {[%clk 0:02:58]} 3. Nc3 {[%clk 0:02:57]}  Bb4 {[%clk 0:02:56]} 4. e3 {[%clk 0:02:52]}  O-O {[%clk 0:02:54]} 5. Bd2 {[%clk 0:02:50]}  b6 {[%clk 0:02:54]} 6. Nge2 {[%clk 0:02:50]}  Bb7 {[%clk 0:02:53]} 7. a3 {[%clk 0:02:45]}  Be7 {[%clk 0:02:53]} 8. Nf4 {[%clk 0:02:45]}  d5 {[%clk 0:02:53]} 9. cxd5 {[%clk 0:02:42]}  exd5 {[%clk 0:02:51]} 10. Bd3 {[%clk 0:02:41]}  c5 {[%clk 0:02:51]} 11. Qf3 {[%clk 0:02:41]}  Nc6 {[%clk 0:02:51]} 12. Ncxd5 {[%clk 0:02:28]}  cxd4 {[%clk 0:02:33]} 13. Qh3 {[%clk 0:02:15]}  g6 {[%clk 0:02:18]} 14. Nxe7+ {[%clk 0:01:44]}  Qxe7 {[%clk 0:02:15]} 15. O-O {[%clk 0:01:43]}  Rad8 {[%clk 0:01:55]} 16. Rfe1 {[%clk 0:01:42]}  dxe3 {[%clk 0:01:53]} 17. Rxe3 {[%clk 0:01:36]}  Qd6 {[%clk 0:01:47]} 18. Rg3 {[%clk 0:01:26]}  Ne5 {[%clk 0:01:47]} 19. Bb4 {[%clk 0:01:19]}  Qd4 {[%clk 0:01:03]} 20. Ne2 {[%clk 0:01:18]}  Qd5 {[%clk 0:01:03]} 21. Bxf8 {[%clk 0:01:06]}  Rxf8 {[%clk 0:00:23]} 22. Nc3 {[%clk 0:01:02]}  Qd4 {[%clk 0:00:22]} 23. Rd1 {[%clk 0:00:58]}  Bc8 {[%clk 0:00:20]} 24. Bf5 {[%clk 0:00:55]}  Qc5 {[%clk 0:00:20]} 25. Bxc8 {[%clk 0:00:48]}  Rxc8 {[%clk 0:00:12]} 26. Qh4 {[%clk 0:00:45]}  Rc6 {[%clk 0:00:13]} 27. Qd4 {[%clk 0:00:37]}  Qe7 {[%clk 0:00:09]} 28. Qd8+ {[%clk 0:00:26]}  Qxd8 {[%clk 0:00:09]} 29. Rxd8+ {[%clk 0:00:25]}  Kg7 {[%clk 0:00:09]} 30. h3 {[%clk 0:00:25]}  Nc4 {[%clk 0:00:09]} 31. Nd1 {[%clk 0:00:18]}  Re6 {[%clk 0:00:10]} 32. Rc3 {[%clk 0:00:18]}  b5 {[%clk 0:00:10]} 33. Rc2 {[%clk 0:00:12]}  Re1+ {[%clk 0:00:06]} 34. Kh2 {[%clk 0:00:10]}  a6 {[%clk 0:00:05]} 35. Ne3 {[%clk 0:00:10]}  Nxe3 {[%clk 0:00:05]} 36. fxe3 {[%clk 0:00:11]}  h5 {[%clk 0:00:04]} 37. Rd6 {[%clk 0:00:11]}  h4 {[%clk 0:00:03]} 38. Rd4 {[%clk 0:00:11]}  g5 {[%clk 0:00:03]} 39. Rc5 {[%clk 0:00:10]}  Kg6 {[%clk 0:00:03]} 40. Rd6 {[%clk 0:00:10]}  Rf1 {[%clk 0:00:03]} 41. Rxa6 {[%clk 0:00:11]}  Kh5 {[%clk 0:00:04]} 42. Rxb5 {[%clk 0:00:11]}  Ne4 {[%clk 0:00:03]} 43. Rb8 {[%clk 0:00:10]}  f6 {[%clk 0:00:03]} 44. Rh8+ {[%clk 0:00:07]}  Kg6 {[%clk 0:00:02]} 45. Rf8 {[%clk 0:00:04]}  Kg7 {[%clk 0:00:02]} 46. Re8 {[%clk 0:00:05]}  Ng3 {[%clk 0:00:02]} 47. Re7+ {[%clk 0:00:04]}  Kf8 {[%clk 0:00:03]} 48. Raa7 {[%clk 0:00:04]}  Rh1# {[%clk 0:00:03]} 0-1


[Site "https://www.chess.com"]

[Event "Titled Tuesday Blitz January 10 Late 2023"]
[White "Ju, Wenjun"]
[Black "Baskakov, Egor"]
[WhiteFideId "8603006"]
[BlackFideId "24197866"]
[WhiteElo "2550"]
[BlackElo "2215"]
[Result "0-1"]
[Round "02"]
[TimeControl "180+2"]
[Date "2023.01.10"]
[WhiteClock "0:00:06"]
[BlackClock "0:01:26"]

1. Nf3 {[%clk 0:00:00]}  Nf6 {[%clk 0:00:00]} 2. g3 {[%clk 0:02:59]}  e6 {[%clk 0:02:59]} 3. Bg2 {[%clk 0:02:59]}  Be7 {[%clk 0:02:59]} 4. O-O {[%clk 0:02:58]}  O-O {[%clk 0:03:00]} 5. c4 {[%clk 0:02:58]}  d5 {[%clk 0:03:00]} 6. d4 {[%clk 0:02:59]}  Ne4 {[%clk 0:03:01]} 7. Nbd2 {[%clk 0:02:54]}  f5 {[%clk 0:03:00]} 8. Qc2 {[%clk 0:02:48]}  c6 {[%clk 0:02:59]} 9. b3 {[%clk 0:02:47]}  Bd7 {[%clk 0:02:59]} 10. Bb2 {[%clk 0:02:45]}  Be8 {[%clk 0:03:00]} 11. Ne5 {[%clk 0:02:46]}  Nd7 {[%clk 0:03:00]} 12. Nxd7 {[%clk 0:02:46]}  Qxd7 {[%clk 0:03:01]} 13. Nxe4 {[%clk 0:02:41]}  fxe4 {[%clk 0:03:02]} 14. f3 {[%clk 0:02:41]}  exf3 {[%clk 0:03:01]} 15. Bxf3 {[%clk 0:02:42]}  Bg6 {[%clk 0:03:01]} 16. Qd2 {[%clk 0:02:40]}  Bd6 {[%clk 0:03:01]} 17. Rf2 {[%clk 0:02:40]}  Rf7 {[%clk 0:02:56]} 18. Raf1 {[%clk 0:02:38]}  Raf8 {[%clk 0:02:53]} 19. Qe3 {[%clk 0:02:38]}  Qe7 {[%clk 0:02:54]} 20. Kg2 {[%clk 0:02:18]}  Bf5 {[%clk 0:02:20]} 21. h4 {[%clk 0:02:12]}  Bc7 {[%clk 0:02:12]} 22. Qg5 {[%clk 0:01:46]}  Qd6 {[%clk 0:01:59]} 23. c5 {[%clk 0:00:34]}  Qd7 {[%clk 0:01:56]} 24. g4 {[%clk 0:00:33]}  h6 {[%clk 0:01:48]} 25. Qh5 {[%clk 0:00:17]}  Bc2 {[%clk 0:01:36]} 26. g5 {[%clk 0:00:14]}  g6 {[%clk 0:01:29]} 27. Qg4 {[%clk 0:00:06]}  Bf5 {[%clk 0:01:26]} 0-1


[Site "https://www.chess.com"]

[Event "Titled Tuesday Blitz January 10 Late 2023"]
[White "Sanal, Vahap"]
[Black "Sargsyan, Anna M."]
[WhiteFideId "6300545"]
[BlackFideId "13308130"]
[WhiteElo "2600"]
[BlackElo "2375"]
[Result "1-0"]
[Round "02"]
[TimeControl "180+2"]
[Date "2023.01.10"]
[WhiteClock "0:00:31"]
[BlackClock "0:00:01"]

1. d4 {[%clk 0:00:00]}  d5 {[%clk 0:00:00]} 2. Nf3 {[%clk 0:03:00]}  Nf6 {[%clk 0:02:56]} 3. e3 {[%clk 0:03:01]}  g6 {[%clk 0:02:55]} 4. c4 {[%clk 0:03:00]}  Bg7 {[%clk 0:02:51]} 5. Nc3 {[%clk 0:03:00]}  O-O {[%clk 0:02:52]} 6. Be2 {[%clk 0:02:59]}  dxc4 {[%clk 0:02:51]} 7. Bxc4 {[%clk 0:02:59]}  c5 {[%clk 0:02:50]} 8. O-O {[%clk 0:02:59]}  cxd4 {[%clk 0:02:51]} 9. Nxd4 {[%clk 0:02:58]}  Nbd7 {[%clk 0:02:50]} 10. Be2 {[%clk 0:02:59]}  a6 {[%clk 0:02:47]} 11. Bd2 {[%clk 0:02:56]}  Nc5 {[%clk 0:02:44]} 12. Rc1 {[%clk 0:02:55]}  Bd7 {[%clk 0:02:43]} 13. Bf3 {[%clk 0:02:52]}  Qb6 {[%clk 0:02:40]} 14. b4 {[%clk 0:02:50]}  Nd3 {[%clk 0:02:36]} 15. Rb1 {[%clk 0:02:46]}  Ne5 {[%clk 0:02:34]} 16. Be2 {[%clk 0:02:42]}  Rac8 {[%clk 0:02:34]} 17. Qb3 {[%clk 0:02:40]}  Nc6 {[%clk 0:02:34]} 18. Nxc6 {[%clk 0:02:37]}  Bxc6 {[%clk 0:02:19]} 19. Rfd1 {[%clk 0:02:17]}  Ne4 {[%clk 0:02:20]} 20. Nxe4 {[%clk 0:02:13]}  Bxe4 {[%clk 0:02:12]} 21. Rbc1 {[%clk 0:02:09]}  Rxc1 {[%clk 0:02:13]} 22. Rxc1 {[%clk 0:02:09]}  Rd8 {[%clk 0:02:12]} 23. Be1 {[%clk 0:02:07]}  e6 {[%clk 0:02:12]} 24. a4 {[%clk 0:02:02]}  Bd5 {[%clk 0:02:09]} 25. Qc2 {[%clk 0:02:02]}  Qd6 {[%clk 0:02:06]} 26. a5 {[%clk 0:01:58]}  Qe5 {[%clk 0:02:01]} 27. h3 {[%clk 0:01:57]}  Qg5 {[%clk 0:01:49]} 28. Bf1 {[%clk 0:01:53]}  Bf6 {[%clk 0:01:47]} 29. Rd1 {[%clk 0:01:48]}  Bc6 {[%clk 0:01:40]} 30. Rxd8+ {[%clk 0:01:43]}  Bxd8 {[%clk 0:01:25]} 31. Bc3 {[%clk 0:01:39]}  Bf6 {[%clk 0:01:26]} 32. Bxf6 {[%clk 0:01:37]}  Qxf6 {[%clk 0:01:22]} 33. Qd2 {[%clk 0:01:37]}  Qg5 {[%clk 0:01:23]} 34. Qd4 {[%clk 0:01:16]}  Qd5 {[%clk 0:01:15]} 35. Qxd5 {[%clk 0:01:10]}  Bxd5 {[%clk 0:01:14]} 36. f3 {[%clk 0:01:07]}  f5 {[%clk 0:01:13]} 37. Kf2 {[%clk 0:01:07]}  e5 {[%clk 0:01:09]} 38. Ke1 {[%clk 0:01:07]}  Kf7 {[%clk 0:01:09]} 39. Kd2 {[%clk 0:01:04]}  Ke6 {[%clk 0:01:08]} 40. Kc3 {[%clk 0:01:04]}  Kd6 {[%clk 0:01:08]} 41. f4 {[%clk 0:01:00]}  exf4 {[%clk 0:01:06]} 42. exf4 {[%clk 0:01:00]}  h6 {[%clk 0:00:47]} 43. Kd4 {[%clk 0:01:00]}  Bc6 {[%clk 0:00:29]} 44. g3 {[%clk 0:00:58]}  Bd5 {[%clk 0:00:26]} 45. Be2 {[%clk 0:00:57]}  Bc6 {[%clk 0:00:19]} 46. h4 {[%clk 0:00:54]}  Bd5 {[%clk 0:00:18]} 47. Bd3 {[%clk 0:00:51]}  h5 {[%clk 0:00:11]} 48. Bc2 {[%clk 0:00:50]}  Bf7 {[%clk 0:00:10]} 49. Ba4 {[%clk 0:00:48]}  Bg8 {[%clk 0:00:10]} 50. Be8 {[%clk 0:00:48]}  Bh7 {[%clk 0:00:01]} 51. Bf7 {[%clk 0:00:47]}  Kc6 {[%clk 0:00:02]} 52. Bd5+ {[%clk 0:00:46]}  Kb5 {[%clk 0:00:01]} 53. Kc3 {[%clk 0:00:30]}  b6 {[%clk 0:00:02]} 54. Bc4+ {[%clk 0:00:30]}  Ka4 {[%clk 0:00:01]} 55. axb6 {[%clk 0:00:31]} 1-0


[Site "https://www.chess.com"]

[Event "Titled Tuesday Blitz January 10 Late 2023"]
[White "Ibarra Jerez, Jose Carlos"]
[Black "Bayo Milagro, Alvaro"]
[WhiteFideId "2226332"]
[BlackFideId "22275240"]
[WhiteElo "2563"]
[BlackElo "2287"]
[Result "1-0"]
[Round "02"]
[TimeControl "180+2"]
[Date "2023.01.10"]
[WhiteClock "0:00:34"]
[BlackClock "0:00:10"]

1. Nf3 {[%clk 0:00:00]}  Nf6 {[%clk 0:00:00]} 2. g3 {[%clk 0:03:00]}  g6 {[%clk 0:02:59]} 3. b3 {[%clk 0:02:58]}  Bg7 {[%clk 0:02:57]} 4. Bb2 {[%clk 0:02:58]}  b6 {[%clk 0:02:55]} 5. Bg2 {[%clk 0:02:58]}  Bb7 {[%clk 0:02:56]} 6. c4 {[%clk 0:02:58]}  c5 {[%clk 0:02:56]} 7. O-O {[%clk 0:02:59]}  O-O {[%clk 0:02:54]} 8. d4 {[%clk 0:02:59]}  cxd4 {[%clk 0:02:54]} 9. Qxd4 {[%clk 0:03:00]}  Nc6 {[%clk 0:02:54]} 10. Qc3 {[%clk 0:03:01]}  d6 {[%clk 0:02:54]} 11. Rd1 {[%clk 0:02:53]}  a6 {[%clk 0:02:38]} 12. Qe1 {[%clk 0:02:53]}  Qc7 {[%clk 0:02:29]} 13. Nc3 {[%clk 0:02:48]}  e6 {[%clk 0:02:24]} 14. Rac1 {[%clk 0:02:47]}  Rac8 {[%clk 0:02:11]} 15. e4 {[%clk 0:02:45]}  Nd7 {[%clk 0:01:53]} 16. Rc2 {[%clk 0:02:11]}  Nc5 {[%clk 0:01:47]} 17. Rcd2 {[%clk 0:02:08]}  Rfd8 {[%clk 0:01:38]} 18. h4 {[%clk 0:01:50]}  h6 {[%clk 0:01:24]} 19. Qe3 {[%clk 0:01:51]}  Nb4 {[%clk 0:01:21]} 20. a3 {[%clk 0:01:49]}  Nc6 {[%clk 0:01:09]} 21. b4 {[%clk 0:01:33]}  Nb3 {[%clk 0:01:01]} 22. Rc2 {[%clk 0:01:31]}  Ne5 {[%clk 0:01:01]} 23. Ne2 {[%clk 0:01:23]}  Nxc4 {[%clk 0:00:50]} 24. Qxb3 {[%clk 0:01:10]}  Bxe4 {[%clk 0:00:29]} 25. Bxg7 {[%clk 0:01:10]}  Bxc2 {[%clk 0:00:20]} 26. Qxc2 {[%clk 0:00:37]}  Kxg7 {[%clk 0:00:19]} 27. Nfd4 {[%clk 0:00:38]}  Nxa3 {[%clk 0:00:19]} 28. Qb2 {[%clk 0:00:36]}  Nc4 {[%clk 0:00:10]} 29. Nxe6+ {[%clk 0:00:34]} 1-0


[Site "https://www.chess.com"]

[Event "Titled Tuesday Blitz January 10 Late 2023"]
[White "Karttunen, Mika"]
[Black "Makarian, Rudik"]
[WhiteFideId "502081"]
[BlackFideId "44105681"]
[WhiteElo "2490"]
[BlackElo "2545"]
[Result "0-1"]
[Round "02"]
[TimeControl "180+2"]
[Date "2023.01.10"]
[WhiteClock "0:00:32"]
[BlackClock "0:01:44"]

1. e4 {[%clk 0:00:00]}  c5 {[%clk 0:00:00]} 2. Nf3 {[%clk 0:03:00]}  e6 {[%clk 0:02:59]} 3. d4 {[%clk 0:02:59]}  cxd4 {[%clk 0:03:00]} 4. Nxd4 {[%clk 0:03:00]}  a6 {[%clk 0:03:01]} 5. Nc3 {[%clk 0:03:00]}  Qc7 {[%clk 0:03:01]} 6. Be3 {[%clk 0:03:00]}  Nf6 {[%clk 0:03:00]} 7. Qf3 {[%clk 0:02:59]}  d6 {[%clk 0:02:58]} 8. O-O-O {[%clk 0:02:56]}  Nbd7 {[%clk 0:02:56]} 9. Be2 {[%clk 0:02:52]}  b5 {[%clk 0:02:56]} 10. a3 {[%clk 0:02:50]}  Bb7 {[%clk 0:02:55]} 11. Bd3 {[%clk 0:02:32]}  Be7 {[%clk 0:02:55]} 12. Qg3 {[%clk 0:02:12]}  O-O {[%clk 0:02:48]} 13. f4 {[%clk 0:02:06]}  Nc5 {[%clk 0:02:46]} 14. Qf3 {[%clk 0:02:05]}  Rfc8 {[%clk 0:02:39]} 15. Kb1 {[%clk 0:01:49]}  Rab8 {[%clk 0:02:14]} 16. g4 {[%clk 0:01:49]}  d5 {[%clk 0:02:12]} 17. e5 {[%clk 0:01:48]}  Nfe4 {[%clk 0:02:12]} 18. Na2 {[%clk 0:01:44]}  Na4 {[%clk 0:02:12]} 19. f5 {[%clk 0:01:23]}  Qxe5 {[%clk 0:02:04]} 20. fxe6 {[%clk 0:01:16]}  fxe6 {[%clk 0:02:00]} 21. Bxe4 {[%clk 0:01:08]}  dxe4 {[%clk 0:02:01]} 22. Bf4 {[%clk 0:01:08]}  Qxd4 {[%clk 0:02:00]} 23. Rxd4 {[%clk 0:00:43]}  exf3 {[%clk 0:01:50]} 24. Bxb8 {[%clk 0:00:42]}  Rxb8 {[%clk 0:01:50]} 25. Nc1 {[%clk 0:00:42]}  Bc5 {[%clk 0:01:51]} 26. Rf4 {[%clk 0:00:34]}  e5 {[%clk 0:01:47]} 27. Rf5 {[%clk 0:00:33]}  Rf8 {[%clk 0:01:47]} 28. Nd3 {[%clk 0:00:33]}  Rxf5 {[%clk 0:01:44]} 29. gxf5 {[%clk 0:00:32]}  e4 {[%clk 0:01:44]} 30. Nxc5 {[%clk 0:00:32]}  Nxc5 {[%clk 0:01:44]} 0-1


[Site "https://www.chess.com"]